Cogmind - Beta 13 X2 @@@ ROGUE MODE // 2024.01.12 @ 20:37:39 Player: Minty Result: Destroyed by YI-UF0 with YI-UF0's Doublenader Performance ------------- Evolutions (0) 0 Regions Visited (2) 400 Robots Destroyed (14) 70 Value Destroyed (248) 248 Prototype IDs (0) 0 Alien Tech Used (0) 0 Bonus (0) 0 TOTAL SCORE: 718 Bonus ------- None Cogmind --------- Core Integrity 0/250 Matter 281/300 Energy 105/125 System Corruption 0% Temperature Cool (0) Movement Treading (240) Ox1 Location -10/Mines Parts ------- > --- POWER (1) -------- Light Ion Engine > --- PROPULSION (2) --- Light Treads > --- UTILITY (2) ------ Large Storage Unit Signal Interpreter > --- WEAPON (2) ------- Medium Laser Small Laser > --- INVENTORY (15) --- Light Ion Engine Heat Sink Large Storage Unit High-capacity Battery (250) Sensor Array Signal Interpreter Power Shielding Light Armor Plating Light Armor Plating Peak State ------------ > --- POWER ------------ Ion Engine > --- PROPULSION ------- Light Treads Compact Wheel > --- UTILITY ---------- Large Storage Unit Signal Interpreter > --- WEAPON ----------- Small Laser Assault Rifle > --- INVENTORY -------- Light Ion Engine Heat Sink Large Storage Unit High-capacity Battery Sensor Array Signal Interpreter Power Shielding Light Armor Plating Light Armor Plating Medium Laser [Rating: 8] Favorites ----------- Power Light Ion Engine Engine Light Ion Engine Propulsion Aluminum Leg Treads Light Treads Leg Aluminum Leg Wheel Compact Wheel Utility Large Storage Unit Storage Large Storage Unit Processor Signal Interpreter Weapon Assault Rifle Energy Gun Small Laser Ballistic Gun Assault Rifle Build | -11 -10 -10 ------- Run | Yrd Mat Min Slots Evolved . | . . . Power . | . . . Propulsion . | . . . Utility . | . . . Weapon . | . . . Parts Attached 12 | . 7 5 Power 5 | . 1 4 Engine 5 | . 1 4 Core . | . . . Reactor . | . . . Propulsion 2 | . 2 . Treads 1 | . 1 . Leg . | . . . Wheel 1 | . 1 . Hover . | . . . Flight . | . . . Utility 2 | . 2 . Device . | . . . Storage 1 | . 1 . Processor 1 | . 1 . Hackware . | . . . Protection . | . . . Artifact . | . . . Weapon 3 | . 2 1 Energy Gun 2 | . 1 1 Energy Cannon . | . . . Ballistic Gun 1 | . 1 . Ballistic Cannon . | . . . Launcher . | . . . Special Weapon . | . . . Impact Weapon . | . . . Slashing Weapon . | . . . Piercing Weapon . | . . . Special Melee Weapon . | . . . Unidentified Prototypes . | . . . Parts Lost 5 | . 1 4 Power 2 | . . 2 Propulsion 1 | . . 1 Utility . | . . . Weapon 2 | . 1 1 Highest Loss Streak 2 | . 1 2 To Critical Strikes . | . . . Average Slot Usage (%) 96 | . 95 98 Engine 13 | . 14 13 Treads 7 | . 3 14 Leg 13 | . 21 . Wheel 6 | . 2 13 Storage 14 | . 14 14 Processor 11 | . 9 14 Energy Gun 14 | . 14 14 Ballistic Gun 14 | . 14 14 Naked Turns . | . . . Heaviest Build 28 | 12 27 28 Greatest Support 20 | 20 20 16 Greatest Overweight (x) 2 | . 2 1 Average Overweight (x) . | . . 1 Largest Inventory Capacity 15 | . 15 15 Average Capacity 14 | . 14 15 Most Carried 10 | . 8 10 Average Carried 5 | . 3 8 Final Capacity 15 | 8 15 15 Final Carried 9 | 6 7 9 Class Distribution -------------------- 100% | Mutant Dominant Class ---------------- Mutant | -10/Materials Mutant | -10/Mines Resources | -11 -10 -10 ----------- Run | Yrd Mat Min Matter Collected 405 | 200 152 53 Remotely . | . . . Salvage Created 452 | . 397 55 Parts 30 | . 26 4 Haulers Intercepted . | . . . Recyclers Shooed 1 | . 1 . Parts Field Recycled . | . . . Retrieved Matter . | . . . Parts Self-Destructed . | . . . Prevented . | . . . Kills | -11 -10 -10 ------- Run | Yrd Mat Min Combat Hostiles Destroyed 11 | . 8 3 Guns 11 | . 8 3 Classes Destroyed 7 | . 6 1 Worker 1 | . 1 . Builder 1 | . 1 . Recycler 1 | . 1 . Watcher 1 | . 1 . Swarmer 5 | . 3 2 Grunt 5 | . 5 . Assembled 1 | . . 1 Best Kill Streak 4 | . 4 4 Combat Bots Only 4 | . 4 2 Max Kills in Single Turn 2 | . 2 1 Gunslinging . | . . . Exploded . | . . . Melee . | . . . Uniques/NPCs Destroyed . | . . . Combat | -11 -10 -10 -------- Run | Yrd Mat Min Hostile Shots Fired 99 | . 66 33 Missed 29 | . 18 11 Damage Taken 966 | . 473 493 Core 263 | . 113 150 Absorbed by Shields . | . . . Core Remaining (%) 100 | 100 . . Volleys Fired 53 | . 38 15 Largest 2 | . 2 2 Hottest 70 | . 70 60 Shots Fired 96 | . 71 25 Gun 96 | . 71 25 Cannon . | . . . Launcher . | . . . Special . | . . . Kinetic 47 | . 33 14 Thermal 49 | . 38 11 Explosive . | . . . Electromagnetic . | . . . Robot Hit Streak 10 | . 10 2 Robot Miss Streak 7 | . 7 4 Penetration Max . | . . . Secondary Targets 4 | . 3 1 Max Gunslinging Chain 1 | . 1 1 Shots Hit Robots 43 | . 36 7 Core Hits 24 | . 19 5 Critical Kills . | . . . Critical Parts Destroyed . | . . . Critical Strikes 1 | . 1 . Burn 1 | . 1 . Melee Attacks . | . . . Impact . | . . . Slashing . | . . . Piercing . | . . . Sneak Attacks . | . . . Combat Hostiles . | . . . Follow-up Attacks . | . . . Damage Inflicted 581 | . 483 98 Guns 573 | . 475 98 Cannons . | . . . Explosions . | . . . Melee . | . . . Ramming 8 | . 8 . Kinetic 278 | . 224 54 Thermal 295 | . 251 44 Explosive . | . . . Electromagnetic . | . . . Impact . | . . . Slashing . | . . . Piercing . | . . . Highest Corruption . | . . . Average Corruption . | . . . Corruption Purged . | . . . Corruption Blocked . | . . . Overload Shots . | . . . Overflow Damage . | . . . Projectiles . | . . . Explosions . | . . . Melee . | . . . Knockbacks . | . . . Impact . | . . . Kinetic . | . . . Secondary . | . . . Self-Inflicted Damage 3 | . 3 . Shots . | . . . Rammed 1 | . 1 . Targets Rammed 3 | . 3 . Kicked 2 | . 2 . Crushed . | . . . Highest Temperature 274 | . 274 35 Average Temperature 91 | . 99 19 Received Heat Transfer 286 | . 186 100 Effects 3 | . 3 . Interference 3 | . 3 . Siege Activations . | . . . Robots Corrupted . | . . . Combat Hostiles . | . . . Parts Fried . | . . . Impact Corruptions . | . . . Robots Melted . | . . . Combat Hostiles . | . . . Parts Melted 4 | . 4 . Heat Transferred 891 | . 791 100 Parts Sabotaged . | . . . Parts Stolen . | . . . Parts Stripped . | . . . Power Chain Reactions . | . . . Missiles Intercepted . | . . . Alert | -11 -10 -10 ------- Run | Yrd Mat Min Peak Influence 218 | . 218 124 Initial 84 | . . 84 Average 117 | . 117 117 Maximum Alert Level 1 | . 1 . Low Security (%) 78 | . 66 100 Level 1 21 | . 33 . Level 2 . | . . . Level 3 . | . . . Level 4 . | . . . Level 5 . | . . . High Security . | . . . Max Security . | . . . Squads Dispatched 2 | . 2 . Investigation 2 | . 2 . Extermination . | . . . Reinforcement . | . . . Assault . | . . . Garrison . | . . . Intercept . | . . . Searches Triggered . | . . . Construction Impeded . | . . . Haulers Reinforced . | . . . Active Scanning Responses . | . . . Cargo Convoy Interrupts . | . . . Stealth | -11 -10 -10 --------- Run | Yrd Mat Min Distress Signals . | . . . Communications Jammed . | . . . Distress Signals . | . . . Times Spotted 21 | . 13 8 Peak Tracking Total 8 | . 6 8 Tactical Retreats 1 | . . 1 Traps | -11 -10 -10 ------- Run | Yrd Mat Min Traps Triggered . | . . . Indirectly . | . . . Trap Hack Attempts . | . . . Triggered . | . . . Disarmed . | . . . Reprogrammed . | . . . Reused . | . . . Traps Extracted . | . . . Installed . | . . . Triggered . | . . . Machines | -11 -10 -10 ---------- Run | Yrd Mat Min Machines Disabled . | . . . Max in Single Turn . | . . . Machines Repaired . | . . . Machines Dismantled . | . . . Machines Sabotaged . | . . . Overloaded Fab Kills . | . . . Hacking | -11 -10 -10 --------- Run | Yrd Mat Min Machines Accessed 2 | . 2 . Terminals 2 | . 2 . Fabricators . | . . . Repair Stations . | . . . Recycling Units . | . . . Scanalyzers . | . . . Garrison Access . | . . . Total Hacks 3 | . 3 . Successful 2 | . 2 . Failed 1 | . 1 . Catastrophic . | . . . Database Lockouts . | . . . Manual 3 | . 3 . Terminals 3 | . 3 . Fabricators . | . . . Repair Stations . | . . . Recycling Units . | . . . Scanalyzers . | . . . Garrison Access . | . . . Terminal Hacks . | . . . Fabricator Hacks . | . . . Repair Station Hacks . | . . . Recycling Unit Hacks . | . . . Scanalyzer . | . . . Garrison Access Hacks . | . . . Unauthorized Hacks 2 | . 2 . Terminals 2 | . 2 . Sabotage 2 | . 2 . Fabricators . | . . . Repair Stations . | . . . Recycling Units . | . . . Scanalyzers . | . . . Garrison Access . | . . . Data Cores Recovered . | . . . Used . | . . . Hacking Detections 1 | . 1 . Full Trace Events . | . . . Feedback Events . | . . . Feedback Blocked . | . . . Robot Schematics Acquired . | . . . Robots Built . | . . . Authchips . | . . . Time . | . . . Total Robot Build Rating . | . . . Part Schematics Acquired . | . . . Parts Built . | . . . Authchips . | . . . Time . | . . . Total Part Build Rating . | . . . Parts Repaired . | . . . Time . | . . . Parts Recycled . | . . . Recycled Matter . | . . . Retrieved Matter . | . . . Retrieved Components . | . . . Parts Scanalyzed . | . . . Part Schematics Acquired . | . . . Parts Damaged . | . . . Bothacking | -11 -10 -10 ------------ Run | Yrd Mat Min Used RIF Installer . | . . . Robots Hacked . | . . . Non-combat . | . . . Combat . | . . . Robot Hacks Applied . | . . . Relay Couplers Released . | . . . Fabnet Peak Effective % . | . . . Robots Rewired . | . . . Allies Hacked . | . . . Hacks Repelled . | . . . Allies | -11 -10 -10 -------- Run | Yrd Mat Min Total Allies . | . . . Largest Group . | . . . Highest-Rated Group . | . . . Highest-Rated Ally . | . . . Total Orders . | . . . Ally Attacks . | . . . Total Damage . | . . . Kills . | . . . Allies Corrupted . | . . . Allies Melted . | . . . Intel | -11 -10 -10 ------- Run | Yrd Mat Min Robot Analysis Total . | . . . Derelict Logs Recovered . | . . . Drone Launches . | . . . Drone Recoveries . | . . . Exploration | -11 -10 -10 ------------- Run | Yrd Mat Min Turns Passed 573 | . 358 215 Spaces Moved 289 | 1 145 143 Core . | . . . Treads 3 | . 3 . Legs 100 | 1 99 . Wheels 186 | . 43 143 Hover . | . . . Flight . | . . . Fastest Speed 115 | 120 115 115 Average Speed 134 | 120 154 115 Slowest Speed 260 | 120 260 115 Overloaded Moves . | . . . Propulsion Burnouts . | . . . Robots Hopped . | . . . Cave-ins Triggered . | . . . Exploration Rate (%) 23 | 2 34 35 Regions Visited 2 Branch Regions 1 Pre-discovered Areas . | . . . Known Exits Taken 1 | . 1 . Unknown Exits Taken 1 | 1 . . Scrap Searched 1 | . . 1 Spaces Dug . | . . . Terrain Destroyed . | . . . Melee . | . . . Projectile . | . . . AOE . | . . . Terrain Rammed . | . . . Walls Destroyed . | . . . Machines Disabled . | . . . Actions | -11 -10 -10 --------- Run | Yrd Mat Min Total 377 | . 208 169 Wait 3 | . . 3 Move 287 | . 144 143 Hop . | . . . Pick Up 9 | . 6 3 Fast Attach 3 | . 3 . Attach 5 | . 2 3 Detach 3 | . 3 . Swap 4 | . 2 2 Drop 7 | . 7 . Fire 53 | . 38 15 Melee . | . . . Ram 1 | . 1 . Kick 2 | . 2 . Crush . | . . . Escape Stasis . | . . . Rewire . | . . . Trap . | . . . Miscellaneous . | . . . Route ------- -11/Scrapyard -10/Materials -10/Mines History --------- Turn | Location | Event 1 | -11/Scrapyard | Discovered new exit (range 0) 1 | -11/Scrapyard | Entered Materials 96 | -10/Materials | Discovered new exit (range 11) 310 | -10/Materials | Build established: Mutant 344 | -10/Materials | Identified exit to Mines 359 | -10/Materials | Entered Mines 367 | -10/Mines | Core integrity fell below 50% 479 | -10/Mines | Assembled infested the area 526 | -10/Mines | Met 8R-AWN 573 | -10/Mines | Core integrity fell below 20% 574 | -10/Mines | Destroyed by YI-UF0 with YI-UF0's Doublenader Last Messages --------------- 00531_ The unstable cave ceiling collapses. 00533_ K-01 Serf collects debris. 00536_ The unstable cave ceiling collapses. 00543_ K-01 Serf collects debris. 00546_ The unstable cave ceiling collapses. 8R-AWN: I can't promise they won't dissect you, by the way. They're weird like that. Either way, I'm sure they'll be happy to try putting you back together again. 00548_ K-01 Serf collects debris. 00559_ The unstable cave ceiling collapses. 00565_ HV Slug penetrates YI-UF0. 00566_ Com. Wheel destroyed. 00567_ HV Slug penetrates YI-UF0. 00570_ YI-UF0 suffers critical hit (Destroy). 00571_ YI-UF0 mumbles something. 00572_ The unstable cave ceiling collapses. 00572_ HV Slug penetrates YI-UF0. 00572_ Assault Rifle destroyed. 00573_ YI-UF0 mumbles something. Map ----- +----------------------------------------------------+ | ????????????????????????????????????### #???????? | | ???????????????????????????????????## #???????? | | ??????????????????????????????????## #???????? | | ??????????????????????????????# ### ##??????? | | ??????????????????????????????# ##?????? | | ??????????????????????????????????# #?????? | | ??????????????????????????????????## #?????? | | ???????????????????????????????????## ##????? | | ????????????????????????????????????### ####?? | | ??????????????????????????????????????## = ##? | | ??????????????????????? ???????????#[%= #? | | ?????????????????????? g ??????????## * = #? | | ????????????????????# ??????????# % ##? | | ????????????????????# ???????# ## ##?? | | ???????????????##???? # ???????# ### #?## | | ??????????????## ??? ???????# #?# ### | | ??????????????# ?## ???????# #### ## | | ?????????????## ## ##??????## ##?# " | | ???????????? #???????## #???# " | | ???????????? #????????# ##### ## " | | ????????????# ###??????# ## | | ???????????## # #??????####### ### | | ???????????# #????????????# #?## | | ???????????# #????????????# ###? | | ???????????# g ##???????????# ## | | ???????????# @ #???###????## # | | ?????????????????## #??## #???## # | | ??????????????????# #### ##### ## | | ??????????????????## ## # % #? | | ???????????????????###### # ## # "# ##? | | ????????????????????????### ## # # #?? | | ??????????????????????????# #?? | | ??????????????????????????# ### ## # # ##?? | | ??????????????????????????# ## # # ##??? | | ??????????????????????????# ## % # #???? | | ?????????????????????????? #### # # ##???? | | ????????????????????????? #??# #### #???? | | ????????????????????????######??# #??# ##???? | | ????????????????????????????????# #?# #????? | | ????????????????????????????????# #?# # #????? | | ????????????????????????????????# ??# #???? | | ????????????????????????????????# ??## # #???? | | ????????????????????????????????# ???# # #???? | | ????????????????????????????????# ??? ##???? | | ????????????????????????????????? ??## ????? | | ????????????????????????????????? ???# ????? | | ????????????????????????????????? ???## # ????? | | ??????????????????????????????????????##?## ???? | | ???????????????????????????????????????????# ???? | | ????????????????????????????????????????????? ???? | +----------------------------------------------------+ Best States ------------- Heat Dissipation 25 Energy Generation 10 Energy Capacity 250 Matter Stores 300 Matter Capacity 300 Sight Range 16 Terrain Scan Density 10 Evasion (%) 55 Recoil Reduction 1 Item Schematics ----------------- None Robot Schematics ------------------ None Fabricated ------------ Nothing Alien Tech Used ----------------- None Achievements -------------- None Challenges ------------ None Game ------ Seed WardroneLegShifter Manual? 0 Play Time 00:05:58 Cumulative 585.6 hours Start 2024.01.12 @ 20:33:39 End 2024.01.12 @ 20:37:39 Sessions 1 Manual Loads 0 Difficulty Rogue Special Mode None Game No. 507 Rogue 234 Adventurer 123 Explorer 150 Win Type - Total 25 Types 19/0/4/1/0/0/0/1/0 Lore% 78 Gallery% 90 Achievement% 75 Wizard Run 0 Options --------- ASCII 0 Keyboard 1 Movement Numpad Keybinds 0 Fullscreen 2 Font 18/X11Bold Map View 76x50 Zoom Use 0% Tactical HUD 1 Map Filters NONE Filters NONE Steam 1 RUN: b0b547f8-01be-4647-9a2c-0ea6e1965fa8